Cogmind - Beta 10.2 @@@ ROGUE MODE // 2021.10.18 @ 18:39:33 Player: Shifty Result: Destroyed by G-47 Trooper with Particle Gun Performance ------------- Evolutions (1) 500 Regions Visited (3) 600 Robots Destroyed (26) 130 Value Destroyed (459) 459 Prototype IDs (0) 0 Alien Tech Used (0) 0 Bonus (0) 0 TOTAL SCORE: 1689 Bonus ------- None Cogmind --------- Core Integrity 0/400 Matter 288/300 Energy 100/100 System Corruption 0% Temperature Cool (9) Movement Core (600) Ox11 Location -9/Storage Parts ------- > --- POWER (1) -------- (None) > --- PROPULSION (2) --- (None) > --- UTILITY (3) ------ High-capacity Storage Unit > --- WEAPON (3) ------- Flail > --- INVENTORY (12) --- Improved Ion Engine Peak State ------------ > --- POWER ------------ (None) > --- PROPULSION ------- Light Treads Light Treads > --- UTILITY ---------- High-capacity Storage Unit Sensor Array Light Armor Plating > --- WEAPON ----------- Heavy Assault Rifle Autogun Flail > --- INVENTORY -------- Improved Ion Engine [Rating: 11] Favorites ----------- Power Light Ion Engine Engine Light Ion Engine Propulsion Aluminum Leg Treads Light Treads Leg Aluminum Leg Hover Unit Hover Unit Utility High-capacity Storage Unit Device Terrain Scanner Storage High-capacity Storage Unit Processor Signal Interpreter Protection Light Armor Plating Weapon Light Assault Rifle Energy Gun Medium Laser Energy Cannon Beam Cannon Ballistic Gun Light Assault Rifle Special Weapon Mining Laser Impact Weapon Flail Build | -11 -10 -9 -9 ------- Run | Scr Mat Mat Sto Slots Evolved 2 | . . 2 . Power . | . . . . Propulsion . | . . . . Utility 1 | . . 1 . Weapon 1 | . . 1 . Parts Attached 31 | 6 14 11 . Power 2 | 1 1 . . Engine 2 | 1 1 . . Core . | . . . . Reactor . | . . . . Propulsion 7 | 2 2 3 . Treads 2 | . . 2 . Leg 4 | 2 2 . . Wheel . | . . . . Hover 1 | . . 1 . Flight . | . . . . Utility 10 | 1 6 3 . Device 4 | 1 2 1 . Storage 3 | . 2 1 . Processor 2 | . 2 . . Hackware . | . . . . Protection 1 | . . 1 . Artifact . | . . . . Weapon 12 | 2 5 5 . Energy Gun 2 | 1 1 . . Energy Cannon 3 | . 3 . . Ballistic Gun 5 | 1 . 4 . Ballistic Cannon . | . . . . Launcher . | . . . . Special Weapon 1 | . 1 . . Impact Weapon 1 | . . 1 . Slashing Weapon . | . . . . Piercing Weapon . | . . . . Special Melee Weapon . | . . . . Unidentified Prototypes . | . . . . Parts Lost 13 | . 1 6 6 Power 1 | . . 1 . Propulsion 4 | . . 2 2 Utility 3 | . . 1 2 Weapon 5 | . 1 2 2 Highest Loss Streak 6 | . 1 6 6 Average Slot Usage (%) 80 | . 93 66 83 Engine 7 | . 14 3 . Treads 6 | . . 9 19 Leg 16 | . 28 7 . Device 11 | . 14 8 11 Storage 9 | . 8 11 11 Protection 3 | . . 4 9 Energy Gun 5 | . 9 3 . Energy Cannon 4 | . 6 3 . Ballistic Gun 12 | . 10 13 21 Impact Weapon 1 | . . . 11 Naked Turns . | . . . . Heaviest Build 45 | 7 45 45 44 Greatest Support 40 | 20 20 40 40 Greatest Overweight (x) 11 | . 2 11 11 Average Overweight (x) . | . . 1 1 Largest Inventory Capacity 12 | 4 12 12 12 Average Capacity 9 | 4 8 12 12 Most Carried 4 | 2 4 3 1 Average Carried . | . . 1 1 Final Capacity 12 | 4 4 12 12 Final Carried 2 | . 2 1 1 Class Distribution -------------------- 77% | Mutant 22% | Scavenger-Mutant Dominant Class ---------------- Mutant | -10/Materials Mutant | -9/Materials Scavenger-Mutant | -9/Storage Resources | -11 -10 -9 -9 ----------- Run | Scr Mat Mat Sto Matter Collected 560 | 254 90 147 69 Remotely . | . . . . Salvage Created 682 | 35 303 244 100 Parts 49 | 1 19 24 5 Haulers Intercepted . | . . . . Recyclers Shooed . | . . . . Parts Field Recycled . | . . . . Retrieved Matter . | . . . . Parts Self-Destructed . | . . . . Prevented . | . . . . Kills | -11 -10 -9 -9 ------- Run | Scr Mat Mat Sto Combat Hostiles Destroyed 22 | 1 8 9 4 Melee 2 | . . . 2 Guns 13 | 1 6 4 2 Cannons 5 | . 2 3 . AOE 2 | . . 2 . Classes Destroyed 6 | 1 4 1 . Worker 1 | . 1 . . Recycler 1 | . 1 . . Watcher 2 | . 1 1 . Swarmer 15 | . 6 7 2 Grunt 5 | 1 2 . 2 Sentry 2 | . . 2 . Best Kill Streak 4 | 1 3 4 2 Combat Bots Only 3 | 1 3 3 2 Max Kills in Single Turn 3 | 1 3 2 1 Gunslinging . | . . . . Exploded 2 | . . 2 . Melee 1 | . . . 1 Uniques/NPCs Destroyed . | . . . . Combat | -11 -10 -9 -9 -------- Run | Scr Mat Mat Sto Damage Taken 1875 | 46 321 702 806 Core 513 | 12 85 218 198 Absorbed by Shields . | . . . . Core Remaining (%) 78 | 95 61 . . Volleys Fired 74 | 4 26 31 13 Largest 2 | 2 2 2 2 Hottest 120 | 70 120 100 46 Shots Fired 122 | 8 39 49 26 Gun 95 | 8 26 35 26 Cannon 25 | . 11 14 . Launcher . | . . . . Special 2 | . 2 . . Kinetic 62 | 4 20 12 26 Thermal 35 | 4 17 14 . Explosive . | . . . . Electromagnetic 25 | . 2 23 . Robot Hit Streak 14 | 4 5 9 14 Robot Miss Streak 3 | . 3 3 1 Penetration Max . | . . . . Secondary Targets . | . . . . Shots Hit Robots 82 | 4 19 28 31 Core Hits 37 | 2 13 17 5 Critical Hits . | . . . . Critical Kills . | . . . . Critical Parts Destroyed . | . . . . Melee Attacks 14 | . . . 14 Impact 14 | . . . 14 Slashing . | . . . . Piercing . | . . . . Sneak Attacks . | . . . . Combat Hostiles . | . . . . Follow-up Attacks . | . . . . Damage Inflicted 1181 | 50 266 377 488 Guns 665 | 50 132 208 275 Cannons 191 | . 86 105 . Explosions 112 | . 48 64 . Melee 213 | . . . 213 Ramming . | . . . . Kinetic 452 | 25 83 69 275 Thermal 365 | 25 171 169 . Explosive . | . . . . Electromagnetic 151 | . 12 139 . Impact 213 | . . . 213 Slashing . | . . . . Piercing . | . . . . Highest Corruption . | . . . . Average Corruption . | . . . . Corruption Purged . | . . . . Overload Shots . | . . . . Overflow Damage 4 | . . 2 2 Projectiles . | . . . . Explosions 2 | . . 2 . Melee 2 | . . . 2 Knockbacks 2 | . . . 2 Impact 2 | . . . 2 Kinetic . | . . . . Secondary . | . . . . Self-Inflicted Damage 36 | . . 36 . Shots 1 | . . 1 . Rammed . | . . . . Targets Rammed . | . . . . Kicked . | . . . . Crushed . | . . . . Highest Temperature 330 | 84 207 330 4 Average Temperature 100 | 46 46 175 3 Received Heat Transfer 357 | 24 18 144 171 Effects 1 | . . 1 . Short Circuit 1 | . . 1 . Siege Activations . | . . . . Robots Corrupted . | . . . . Combat Hostiles . | . . . . Parts Fried . | . . . . Impact Corruptions 2 | . . . 2 Robots Melted . | . . . . Combat Hostiles . | . . . . Parts Melted . | . . . . Heat Transferred 792 | 74 346 372 . Parts Sabotaged . | . . . . Parts Stolen . | . . . . Parts Stripped . | . . . . Power Chain Reactions 2 | . 1 1 . Missiles Intercepted . | . . . . Alert | -11 -10 -9 -9 ------- Run | Scr Mat Mat Sto Peak Influence 256 | 20 141 256 139 Initial 59 | . 13 59 29 Average 88 | 15 92 124 72 Maximum Alert Level 1 | . . 1 . Low Security (%) 89 | 100 100 71 100 Level 1 10 | . . 28 . Level 2 . | . . . . Level 3 . | . . . . Level 4 . | . . . . Level 5 . | . . . . High Security . | . . . . Max Security . | . . . . Squads Dispatched 1 | . 1 . . Investigation . | . . . . Extermination . | . . . . Reinforcement 1 | . 1 . . Assault . | . . . . Garrison . | . . . . Intercept . | . . . . Construction Impeded . | . . . . Haulers Reinforced . | . . . . Stealth | -11 -10 -9 -9 --------- Run | Scr Mat Mat Sto Distress Signals 3 | . . 2 1 Communications Jammed . | . . . . Distress Signals . | . . . . Times Spotted 40 | 1 13 14 12 Peak Tracking Total 6 | 1 5 5 6 Tactical Retreats 2 | . 1 . 1 Traps | -11 -10 -9 -9 ------- Run | Scr Mat Mat Sto Traps Triggered 1 | . . . 1 Indirectly . | . . . . Trap Hack Attempts . | . . . . Triggered . | . . . . Disarmed . | . . . . Reprogrammed . | . . . . Reused . | . . . . Traps Extracted . | . . . . Installed . | . . . . Triggered . | . . . . Machines | -11 -10 -9 -9 ---------- Run | Scr Mat Mat Sto Machines Disabled 1 | . . 1 . Max in Single Turn 1 | . . 1 . Machines Sabotaged . | . . . . Garrisons Compromised . | . . . . Overloaded Fab Kills . | . . . . Fab Network Shutdowns . | . . . . Hacking | -11 -10 -9 -9 --------- Run | Scr Mat Mat Sto Machines Accessed 1 | . 1 . . Terminals 1 | . 1 . . Fabricators . | . . . . Repair Stations . | . . . . Recycling Units . | . . . . Scanalyzers . | . . . . Garrison Access . | . . . . Total Hacks 2 | . 2 . . Successful 1 | . 1 . . Failed 1 | . 1 . . Catastrophic . | . . . . Database Lockouts . | . . . . Manual . | . . . . Terminals 2 | . 2 . . Fabricators . | . . . . Repair Stations . | . . . . Recycling Units . | . . . . Scanalyzers . | . . . . Garrison Access . | . . . . Terminal Hacks 1 | . 1 . . Record 1 | . 1 . . Fabricator Hacks . | . . . . Repair Station Hacks . | . . . . Recycling Unit Hacks . | . . . . Scanalyzer . | . . . . Garrison Access Hacks . | . . . . Unauthorized Hacks . | . . . . Terminals . | . . . . Fabricators . | . . . . Repair Stations . | . . . . Recycling Units . | . . . . Scanalyzers . | . . . . Garrison Access . | . . . . Data Cores Recovered . | . . . . Used . | . . . . Hacking Detections 1 | . 1 . . Full Trace Events . | . . . . Feedback Events . | . . . . Feedback Blocked . | . . . . Robot Schematics Acquired . | . . . . Robots Built . | . . . . Matter . | . . . . Time . | . . . . Total Robot Build Rating . | . . . . Part Schematics Acquired . | . . . . Parts Built . | . . . . Matter . | . . . . Time . | . . . . Total Part Build Rating . | . . . . Parts Repaired . | . . . . Time . | . . . . Parts Recycled . | . . . . Recycled Matter . | . . . . Retrieved Matter . | . . . . Retrieved Components . | . . . . Parts Scanalyzed . | . . . . Part Schematics Acquired . | . . . . Parts Damaged . | . . . . Bothacking | -11 -10 -9 -9 ------------ Run | Scr Mat Mat Sto Used RIF Installer . | . . . . Robots Hacked . | . . . . Non-combat . | . . . . Combat . | . . . . Robot Hacks Applied . | . . . . Relay Couplers Released . | . . . . Robots Rewired . | . . . . Allies Hacked . | . . . . Hacks Repelled . | . . . . Allies | -11 -10 -9 -9 -------- Run | Scr Mat Mat Sto Total Allies . | . . . . Largest Group . | . . . . Highest-Rated Group . | . . . . Highest-Rated Ally . | . . . . Total Orders . | . . . . Ally Attacks . | . . . . Total Damage . | . . . . Kills . | . . . . Allies Corrupted . | . . . . Allies Melted . | . . . . Intel | -11 -10 -9 -9 ------- Run | Scr Mat Mat Sto Robot Analysis Total . | . . . . Derelict Logs Recovered . | . . . . Drone Launches . | . . . . Drone Recoveries . | . . . . Exploration | -11 -10 -9 -9 ------------- Run | Scr Mat Mat Sto Turns Passed 1866 | 335 694 670 167 Spaces Moved 896 | 162 402 284 48 Core 44 | 31 . 12 1 Treads 218 | . . 171 47 Legs 629 | 131 402 96 . Wheels . | . . . . Hover 5 | . . 5 . Flight . | . . . . Fastest Speed 50 | 50 120 160 180 Average Speed 153 | 106 138 195 189 Slowest Speed 600 | 120 180 600 600 Overloaded Moves . | . . . . Propulsion Burnouts . | . . . . Robots Hopped . | . . . . Cave-ins Triggered . | . . . . Exploration Rate (%) 23 | 10 49 21 13 Regions Visited 3 Branch Regions 1 Pre-discovered Areas . | . . . . Known Exits Taken . | . . . . Unknown Exits Taken 3 | 1 1 1 . Scrap Searched . | . . . . Spaces Dug . | . . . . Terrain Destroyed 7 | . 5 2 . Melee . | . . . . Projectile 2 | . 2 . . AOE 5 | . 3 2 . Terrain Rammed . | . . . . Walls Destroyed . | . . . . Machines Disabled . | . . . . Actions | -11 -10 -9 -9 --------- Run | Scr Mat Mat Sto Total 1264 | 317 507 356 84 Wait 199 | 140 36 16 7 Move 893 | 161 401 283 48 Hop . | . . . . Pick Up 31 | 6 15 10 . Fast Attach . | . . . . Attach 31 | 6 14 11 . Detach 5 | . 3 2 . Swap . | . . . . Drop 15 | . 12 3 . Fire 74 | 4 26 31 13 Melee 14 | . . . 14 Ram . | . . . . Kick . | . . . . Crush . | . . . . Escape Stasis 2 | . . . 2 Rewire . | . . . . Trap . | . . . . Miscellaneous . | . . . . Route ------- -11/Scrapyard -10/Materials -9/Materials (discovered 3 exits: [*Mat] / [*Min] / [*Sto]) -9/Storage History --------- Turn | Location | Event 2 | -11/Scrapyard | Met Revision 17 65 | -11/Scrapyard | Discovered new exit (range 8) 336 | -11/Scrapyard | Entered Materials 356 | -10/Materials | Build established: Mutant 907 | -10/Materials | Discovered new exit (range 16) 1030 | -10/Materials | Entered another Materials area 1030 | -9/Materials | Evolved 2 slots: Utility x1, Weapon x1 1146 | -9/Materials | Discovered new exit (range 16) 1235 | -9/Materials | Discovered new exit (range 7) 1311 | -9/Materials | Core integrity fell below 50% 1323 | -9/Materials | Lost 6 parts (1p2n1u2w) 1509 | -9/Materials | Discovered new exit (range 10) 1700 | -9/Materials | Entered Storage 1716 | -9/Storage | Build established: Scavenger-Mutant 1853 | -9/Storage | Core integrity fell below 20% 1867 | -9/Storage | Destroyed by G-47 Trooper with Particle Gun Last Messages --------------- S-10 Pest knocked back. K-01 Serf collects debris. S-10 Pest destroyed. K-01 Serf collects debris. Lgt. Treads destroyed. Destroyed Flight Unit. S-10 Pest system corrupted by crushing effect. S-10 Pest destroyed. Lgt. Armor Plating destroyed. S-10 Pest knocked back. W-16 Scout sends out distress signal. Autogun destroyed. Destroyed Flight Unit. S-10 Pest system corrupted by crushing effect. Hvy. Assault Rifle destroyed. U-05 Engineer lays Concrete. U-05 Engineer destroyed. Lgt. Treads destroyed. S-10 Pest misfires. Sensor Array destroyed. Map ----- +----------------------------------------------------+ | ?????????????????????????????????????????????????? | | ?????????????????????????????????????????????????? | | ?????????????????????????????????????????????????? | | ?????????????????????????????????????????????????? | | ?????????????????????????????????????????????????? | | ?????????????????????????????????????????????????? | | ?????????????????????????????????????????????????? | | ?????????????????????????????????????????????????? | | ????????????????????????????????? ???????????????? | | ????????????????????????????????? ???????????????? | | ?????????????????????? ?????????? ???????????????? | | ?????????????????????? ?????????? ???????????????? | | ?????????????????????? ?????????? ???????????????? | | ?????????????????????? ?????????? ???????????????? | | ?????????????????????? ??????####+???????????????? | | ?????????????????????? ??????# ???????????????? | | ?????????????????????? ??????# ???????????????? | | ?????????????????????# #?????# "???????????????? | | ?????????????????????# #?????# "???????????????? | | ?????????????????????# #?????# "???????????????? | | ?????????????????????# +?????# "???????????????? | | ?????????????????????# #?????# "???????????????? | | ?????????????????????# #?????# """" #??????????? | | ?????????????????????#%#?????# = #######????? | | ????????????#+########%##########/##### #????? | | ??????? g ![%! @s w [ #????? | | ??????? *%!= u #????? | | ??????? g != s #????? | | ????????###############Y############### #????? | | ?????????????????????? ?????########### ##????? | | ????????????????????? ?????# # #?????? | | ???????????????????? """?????# # #?????? | | ???????????????????" """?????# # #?????? | | ??????????????????"Y """?????# + +?????? | | ??????????????????"" ""??????# # #?????? | | ?????????????????????????????# """"" # ^#?????? | | ?????????????????????????????# """"" # #?????? | | ?????????????????????????????# """"" # #?????? | | ?????????????????????????????########### #?????? | | ???????????????????????????????????????#####?????? | | ?????????????????????????????????????????????????? | | ?????????????????????????????????????????????????? | | ?????????????????????????????????????????????????? | | ?????????????????????????????????????????????????? | | ?????????????????????????????????????????????????? | | ?????????????????????????????????????????????????? | | ?????????????????????????????????????????????????? | | ?????????????????????????????????????????????????? | | ?????????????????????????????????????????????????? | | ?????????????????????????????????????????????????? | +----------------------------------------------------+ Best States ------------- Heat Dissipation 35 Energy Generation 12 Energy Capacity 265 Matter Stores 300 Matter Capacity 300 Sight Range 16 Robot Scan Range 10 Terrain Scan Range 14 Terrain Scan Density 10 Armor Coverage 150 Evasion (%) 50 Recoil Reduction 2 Item Schematics ----------------- None Robot Schematics ------------------ None Fabricated ------------ Nothing Alien Tech Used ----------------- None Achievements -------------- None Challenges ------------ None Game ------ Seed FlakChargeRecalibrator Manual? 0 Play Time 00:18:34 Cumulative 1.4 hours Start 2021.10.18 @ 01:40:34 End 2021.10.18 @ 18:39:33 Sessions 3 Manual Loads 0 Difficulty Rogue Special Mode None Game No. 3 Rogue 1 Adventurer 2 Explorer 0 Win Type - Total 0 Types 0/0/0/0/0/0/0/0/0 Lore% 1 Gallery% 4 Achievement% 1 Wizard Run 0 Options --------- ASCII 0 Keyboard 0 Movement Numpad Keybinds 0 Fullscreen 1 Font 18/SmallcapsGlow Map View 76x50 Tactical HUD 0 Map Filters NONE Filters NONE Steam 1 RUN: b4856007-990e-4e16-8e2f-a614641a8dba